[Event "Titled Tuesday Blitz October 11 Late 2022"]
[White "Zaloznyy, Mike"]
[Black "Banzea, Alexandru-Bogdan"]
[WhiteFideId "2023075"]
[BlackFideId "1232622"]
[WhiteElo "2126"]
[BlackElo "2294"]
[Result "1/2-1/2"]
[Round "02"]
[TimeControl "180+1"]
[Date "2022.10.12"]
[WhiteClock "0:00:05"]
[BlackClock "0:00:08"]

1. e4 {[%clk 0:03:00]}  c6 {[%clk 0:03:00]} 2. d4 {[%clk 0:02:59]}  d5 {[%clk 0:03:01]} 3. e5 {[%clk 0:02:59]}  Bf5 {[%clk 0:02:58]} 4. h4 {[%clk 0:02:58]}  h5 {[%clk 0:02:59]} 5. Bd3 {[%clk 0:02:58]}  Bxd3 {[%clk 0:02:59]} 6. Qxd3 {[%clk 0:02:59]}  Qa5+ {[%clk 0:02:59]} 7. Nd2 {[%clk 0:02:48]}  e6 {[%clk 0:02:59]} 8. Nf3 {[%clk 0:02:47]}  Nh6 {[%clk 0:02:59]} 9. c4 {[%clk 0:02:46]}  Nf5 {[%clk 0:02:56]} 10. O-O {[%clk 0:02:46]}  Be7 {[%clk 0:02:57]} 11. g3 {[%clk 0:02:43]}  O-O {[%clk 0:02:57]} 12. a3 {[%clk 0:02:42]}  Rd8 {[%clk 0:02:56]} 13. c5 {[%clk 0:02:38]}  Qa6 {[%clk 0:02:20]} 14. Qc3 {[%clk 0:02:19]}  b6 {[%clk 0:02:20]} 15. b4 {[%clk 0:02:19]}  Nd7 {[%clk 0:01:39]} 16. Nb3 {[%clk 0:02:18]}  Qa4 {[%clk 0:01:34]} 17. Bg5 {[%clk 0:02:14]}  Bxg5 {[%clk 0:01:26]} 18. Nxg5 {[%clk 0:02:10]}  a5 {[%clk 0:01:09]} 19. cxb6 {[%clk 0:02:01]}  axb4 {[%clk 0:01:06]} 20. axb4 {[%clk 0:01:36]}  Qb5 {[%clk 0:01:06]} 21. Na5 {[%clk 0:01:30]}  Qxb6 {[%clk 0:00:58]} 22. Qxc6 {[%clk 0:01:11]}  Qxd4 {[%clk 0:00:58]} 23. Nxe6 {[%clk 0:00:58]}  fxe6 {[%clk 0:00:37]} 24. Qxe6+ {[%clk 0:00:58]}  Kh8 {[%clk 0:00:33]} 25. Qxf5 {[%clk 0:00:57]}  Qxe5 {[%clk 0:00:24]} 26. Qf3 {[%clk 0:00:43]}  Nf6 {[%clk 0:00:21]} 27. Nc6 {[%clk 0:00:35]}  Qxa1 {[%clk 0:00:21]} 28. Nxd8 {[%clk 0:00:31]}  Qa7 {[%clk 0:00:21]} 29. Ne6 {[%clk 0:00:25]}  Re8 {[%clk 0:00:15]} 30. Nf4 {[%clk 0:00:22]}  Re5 {[%clk 0:00:12]} 31. Kg2 {[%clk 0:00:20]}  Kg8 {[%clk 0:00:08]} 32. Rd1 {[%clk 0:00:20]}  Qb7 {[%clk 0:00:07]} 33. Rd4 {[%clk 0:00:13]}  Re4 {[%clk 0:00:07]} 34. Qd3 {[%clk 0:00:08]}  Rxd4 {[%clk 0:00:02]} 35. Qxd4 {[%clk 0:00:08]}  Qb5 {[%clk 0:00:02]} 36. Kh2 {[%clk 0:00:07]}  Qc4 {[%clk 0:00:02]} 37. Qxc4 {[%clk 0:00:07]}  dxc4 {[%clk 0:00:03]} 38. b5 {[%clk 0:00:08]}  c3 {[%clk 0:00:03]} 39. b6 {[%clk 0:00:08]}  Nd7 {[%clk 0:00:02]} 40. b7 {[%clk 0:00:07]}  Kf7 {[%clk 0:00:03]} 41. Kg2 {[%clk 0:00:07]}  Ke7 {[%clk 0:00:04]} 42. Kf3 {[%clk 0:00:07]}  Kd6 {[%clk 0:00:05]} 43. Ke3 {[%clk 0:00:06]}  Kc6 {[%clk 0:00:05]} 44. Nxh5 {[%clk 0:00:05]}  Kxb7 {[%clk 0:00:05]} 45. Nxg7 {[%clk 0:00:05]}  Nc5 {[%clk 0:00:06]} 46. Ke2 {[%clk 0:00:04]}  Kc6 {[%clk 0:00:06]} 47. h5 {[%clk 0:00:04]}  Kd5 {[%clk 0:00:07]} 48. h6 {[%clk 0:00:04]}  Nb3 {[%clk 0:00:05]} 49. Kd3 {[%clk 0:00:02]}  Nc5+ {[%clk 0:00:03]} 50. Kxc3 {[%clk 0:00:02]}  Ne4+ {[%clk 0:00:03]} 51. Kd3 {[%clk 0:00:02]}  Nf6 {[%clk 0:00:04]} 52. g4 {[%clk 0:00:02]}  Nh7 {[%clk 0:00:05]} 53. f4 {[%clk 0:00:01]}  Kd6 {[%clk 0:00:05]} 54. g5 {[%clk 0:00:02]}  Nf8 {[%clk 0:00:04]} 55. Ke4 {[%clk 0:00:03]}  Ke7 {[%clk 0:00:04]} 56. f5 {[%clk 0:00:03]}  Kf7 {[%clk 0:00:05]} 57. g6+ {[%clk 0:00:04]}  Nxg6 {[%clk 0:00:06]} 58. f6 {[%clk 0:00:03]}  Nh8 {[%clk 0:00:06]} 59. h7 {[%clk 0:00:03]}  Kxf6 {[%clk 0:00:06]} 60. Nh5+ {[%clk 0:00:04]}  Kg6 {[%clk 0:00:07]} 61. Ng3 {[%clk 0:00:05]}  Kxh7 {[%clk 0:00:08]} 1/2-1/2


[Site "https://www.chess.com"]

[Event "Titled Tuesday Blitz October 11 Late 2022"]
[White "Zivkovic, Nemanja"]
[Black "Krstic, Milos"]
[WhiteFideId "942154"]
[BlackFideId "954888"]
[WhiteElo "2372"]
[BlackElo "2194"]
[Result "1-0"]
[Round "02"]
[TimeControl "180+1"]
[Date "2022.10.12"]
[WhiteClock "0:00:25"]
[BlackClock "0:00:09"]

1. c4 {[%clk 0:02:55]}  Nf6 {[%clk 0:02:58]} 2. Nc3 {[%clk 0:02:54]}  e6 {[%clk 0:02:58]} 3. g3 {[%clk 0:02:46]}  d5 {[%clk 0:02:58]} 4. Nf3 {[%clk 0:02:46]}  Be7 {[%clk 0:02:57]} 5. Bg2 {[%clk 0:02:46]}  O-O {[%clk 0:02:58]} 6. d4 {[%clk 0:02:47]}  dxc4 {[%clk 0:02:57]} 7. Ne5 {[%clk 0:02:41]}  Nc6 {[%clk 0:02:57]} 8. Bxc6 {[%clk 0:02:36]}  bxc6 {[%clk 0:02:57]} 9. Nxc6 {[%clk 0:02:37]}  Qe8 {[%clk 0:02:57]} 10. Nxe7+ {[%clk 0:02:37]}  Qxe7 {[%clk 0:02:58]} 11. Qa4 {[%clk 0:02:37]}  c5 {[%clk 0:02:50]} 12. Qxc4 {[%clk 0:02:31]}  cxd4 {[%clk 0:02:46]} 13. Qxd4 {[%clk 0:02:32]}  Bb7 {[%clk 0:02:35]} 14. O-O {[%clk 0:02:27]}  Rfd8 {[%clk 0:02:25]} 15. Qh4 {[%clk 0:02:18]}  h6 {[%clk 0:02:05]} 16. Be3 {[%clk 0:02:12]}  a5 {[%clk 0:01:46]} 17. Rfd1 {[%clk 0:02:11]}  Ba6 {[%clk 0:01:44]} 18. Rac1 {[%clk 0:02:01]}  Rab8 {[%clk 0:01:42]} 19. b3 {[%clk 0:01:59]}  Rxd1+ {[%clk 0:01:38]} 20. Rxd1 {[%clk 0:01:58]}  Rc8 {[%clk 0:01:36]} 21. Bd4 {[%clk 0:01:54]}  Qb4 {[%clk 0:01:21]} 22. Bxf6 {[%clk 0:01:32]}  Qxh4 {[%clk 0:01:21]} 23. gxh4 {[%clk 0:01:19]}  gxf6 {[%clk 0:01:20]} 24. Rc1 {[%clk 0:01:19]}  Kg7 {[%clk 0:01:16]} 25. f3 {[%clk 0:01:16]}  f5 {[%clk 0:01:16]} 26. Kf2 {[%clk 0:01:17]}  Rd8 {[%clk 0:01:09]} 27. Ke3 {[%clk 0:01:16]}  e5 {[%clk 0:01:08]} 28. Rd1 {[%clk 0:01:11]}  Rc8 {[%clk 0:01:07]} 29. Kd2 {[%clk 0:01:04]}  Rb8 {[%clk 0:00:41]} 30. Rb1 {[%clk 0:00:55]}  Rb4 {[%clk 0:00:41]} 31. e4 {[%clk 0:00:46]}  fxe4 {[%clk 0:00:40]} 32. fxe4 {[%clk 0:00:47]}  f5 {[%clk 0:00:37]} 33. Rg1+ {[%clk 0:00:44]}  Kf7 {[%clk 0:00:37]} 34. exf5 {[%clk 0:00:42]}  Rxh4 {[%clk 0:00:36]} 35. Rg6 {[%clk 0:00:40]}  Rxh2+ {[%clk 0:00:36]} 36. Ke3 {[%clk 0:00:41]}  Rh3+ {[%clk 0:00:36]} 37. Kd2 {[%clk 0:00:41]}  Rh2+ {[%clk 0:00:36]} 38. Ke1 {[%clk 0:00:42]}  Bd3 {[%clk 0:00:32]} 39. Re6 {[%clk 0:00:37]}  e4 {[%clk 0:00:27]} 40. Re5 {[%clk 0:00:30]}  Rc2 {[%clk 0:00:25]} 41. Nd5 {[%clk 0:00:28]}  h5 {[%clk 0:00:13]} 42. Re7+ {[%clk 0:00:27]}  Kf8 {[%clk 0:00:14]} 43. f6 {[%clk 0:00:28]}  h4 {[%clk 0:00:14]} 44. Nc7 {[%clk 0:00:26]}  h3 {[%clk 0:00:08]} 45. Ne6+ {[%clk 0:00:25]}  Kg8 {[%clk 0:00:09]} 46. f7+ {[%clk 0:00:25]} 1-0


[Site "https://www.chess.com"]

[Event "Titled Tuesday Blitz October 11 Late 2022"]
[White "Zomorrodian, Eilia"]
[Black "Sanal, Vahap"]
[WhiteFideId "12551805"]
[BlackFideId "6300545"]
[WhiteElo "2078"]
[BlackElo "2574"]
[Result "0-1"]
[Round "02"]
[TimeControl "180+1"]
[Date "2022.10.12"]
[WhiteClock "0:00:17"]
[BlackClock "0:00:10"]

1. c4 {[%clk 0:02:56]}  d6 {[%clk 0:02:55]} 2. Nf3 {[%clk 0:02:56]}  e5 {[%clk 0:02:56]} 3. Qc2 {[%clk 0:02:54]}  f5 {[%clk 0:02:53]} 4. a3 {[%clk 0:02:53]}  Nc6 {[%clk 0:02:51]} 5. e3 {[%clk 0:02:47]}  g5 {[%clk 0:02:43]} 6. d3 {[%clk 0:02:34]}  g4 {[%clk 0:02:43]} 7. Nfd2 {[%clk 0:02:34]}  Bg7 {[%clk 0:02:43]} 8. Be2 {[%clk 0:02:35]}  Nge7 {[%clk 0:02:39]} 9. b4 {[%clk 0:02:34]}  Ng6 {[%clk 0:02:39]} 10. Bb2 {[%clk 0:02:33]}  h5 {[%clk 0:02:39]} 11. Nc3 {[%clk 0:02:33]}  h4 {[%clk 0:02:39]} 12. O-O-O {[%clk 0:02:32]}  Be6 {[%clk 0:02:33]} 13. Nb3 {[%clk 0:02:25]}  a5 {[%clk 0:02:33]} 14. b5 {[%clk 0:02:23]}  Nce7 {[%clk 0:02:29]} 15. a4 {[%clk 0:02:21]}  Qc8 {[%clk 0:02:23]} 16. g3 {[%clk 0:02:11]}  b6 {[%clk 0:02:23]} 17. d4 {[%clk 0:02:09]}  Qb7 {[%clk 0:02:23]} 18. d5 {[%clk 0:01:49]}  Bf7 {[%clk 0:02:20]} 19. e4 {[%clk 0:01:44]}  Qc8 {[%clk 0:01:34]} 20. exf5 {[%clk 0:01:42]}  Qxf5 {[%clk 0:01:29]} 21. Qxf5 {[%clk 0:01:42]}  Nxf5 {[%clk 0:01:30]} 22. Bxg4 {[%clk 0:01:42]}  Nd4 {[%clk 0:01:31]} 23. Nxd4 {[%clk 0:01:40]}  exd4 {[%clk 0:01:31]} 24. Ne2 {[%clk 0:01:28]}  Ne5 {[%clk 0:01:31]} 25. Bf5 {[%clk 0:01:21]}  d3 {[%clk 0:01:26]} 26. Bxd3 {[%clk 0:01:18]}  hxg3 {[%clk 0:01:25]} 27. fxg3 {[%clk 0:01:13]}  Bh5 {[%clk 0:01:15]} 28. Rhe1 {[%clk 0:01:02]}  O-O-O {[%clk 0:00:59]} 29. Bf5+ {[%clk 0:00:59]}  Kb7 {[%clk 0:00:58]} 30. g4 {[%clk 0:00:59]}  Bxg4 {[%clk 0:00:50]} 31. Bxg4 {[%clk 0:00:57]}  Bh6+ {[%clk 0:00:51]} 32. Kb1 {[%clk 0:00:55]}  Nxg4 {[%clk 0:00:52]} 33. Bxh8 {[%clk 0:00:55]}  Rxh8 {[%clk 0:00:53]} 34. Nd4 {[%clk 0:00:39]}  Nf2 {[%clk 0:00:51]} 35. Nc6 {[%clk 0:00:35]}  Nxd1 {[%clk 0:00:47]} 36. Rxd1 {[%clk 0:00:36]}  Bg5 {[%clk 0:00:43]} 37. Rg1 {[%clk 0:00:33]}  Bf4 {[%clk 0:00:43]} 38. Rh1 {[%clk 0:00:31]}  Rh4 {[%clk 0:00:28]} 39. Kc2 {[%clk 0:00:31]}  Kc8 {[%clk 0:00:28]} 40. h3 {[%clk 0:00:27]}  Kd7 {[%clk 0:00:28]} 41. Kd3 {[%clk 0:00:27]}  Bh6 {[%clk 0:00:20]} 42. Nd4 {[%clk 0:00:25]}  Rf4 {[%clk 0:00:16]} 43. Ne6 {[%clk 0:00:24]}  Rf3+ {[%clk 0:00:16]} 44. Ke4 {[%clk 0:00:23]}  Re3+ {[%clk 0:00:16]} 45. Kf5 {[%clk 0:00:23]}  Rc3 {[%clk 0:00:15]} 46. Kg6 {[%clk 0:00:23]}  Bd2 {[%clk 0:00:16]} 47. h4 {[%clk 0:00:23]}  Rxc4 {[%clk 0:00:17]} 48. h5 {[%clk 0:00:23]}  Rxa4 {[%clk 0:00:13]} 49. Rh2 {[%clk 0:00:20]}  Bc3 {[%clk 0:00:12]} 50. h6 {[%clk 0:00:20]}  Bh8 {[%clk 0:00:13]} 51. Kh7 {[%clk 0:00:19]}  Be5 {[%clk 0:00:12]} 52. Kg8 {[%clk 0:00:17]}  Bxh2 {[%clk 0:00:12]} 53. h7 {[%clk 0:00:17]}  Be5 {[%clk 0:00:12]} 54. Ng7 {[%clk 0:00:17]}  Rg4 {[%clk 0:00:10]} 55. h8=Q {[%clk 0:00:17]}  Rxg7+ {[%clk 0:00:10]} 0-1


[Site "https://www.chess.com"]

[Event "Titled Tuesday Blitz October 11 Late 2022"]
[White "Aguilar, Juan"]
[Black "Dilmukhametov, Artur"]
[WhiteFideId "3800091"]
[BlackFideId "24179922"]
[WhiteElo "2367"]
[BlackElo "2197"]
[Result "1-0"]
[Round "03"]
[TimeControl "180+1"]
[Date "2022.10.12"]
[WhiteClock "0:01:23"]
[BlackClock "0:02:03"]

1. d4 {[%clk 0:03:00]}  d5 {[%clk 0:02:57]} 2. c4 {[%clk 0:03:01]}  c6 {[%clk 0:02:57]} 3. Nf3 {[%clk 0:03:00]}  Nf6 {[%clk 0:02:57]} 4. Qc2 {[%clk 0:03:00]}  dxc4 {[%clk 0:02:56]} 5. e4 {[%clk 0:03:00]}  b5 {[%clk 0:02:56]} 6. b3 {[%clk 0:03:00]}  cxb3 {[%clk 0:02:56]} 7. axb3 {[%clk 0:03:01]}  a6 {[%clk 0:02:56]} 8. Bd2 {[%clk 0:03:01]}  Bb7 {[%clk 0:02:57]} 9. Ba5 {[%clk 0:03:01]}  Qc8 {[%clk 0:02:57]} 10. Bd3 {[%clk 0:02:59]}  e6 {[%clk 0:02:58]} 11. O-O {[%clk 0:02:58]}  c5 {[%clk 0:02:59]} 12. Rc1 {[%clk 0:02:57]}  Nc6 {[%clk 0:02:49]} 13. dxc5 {[%clk 0:02:52]}  Nxa5 {[%clk 0:02:49]} 14. Rxa5 {[%clk 0:02:51]}  Qc7 {[%clk 0:02:27]} 15. b4 {[%clk 0:02:48]}  Be7 {[%clk 0:02:22]} 16. Nc3 {[%clk 0:02:47]}  O-O {[%clk 0:02:22]} 17. e5 {[%clk 0:02:42]}  Nd5 {[%clk 0:02:19]} 18. Nxd5 {[%clk 0:02:42]}  Bxd5 {[%clk 0:02:20]} 19. Bxh7+ {[%clk 0:02:41]}  Kh8 {[%clk 0:02:21]} 20. Be4 {[%clk 0:02:40]}  Rfd8 {[%clk 0:02:21]} 21. Bxd5 {[%clk 0:02:29]}  Rxd5 {[%clk 0:02:22]} 22. h4 {[%clk 0:02:20]}  Rxc5 {[%clk 0:02:19]} 23. bxc5 {[%clk 0:02:08]}  Qxa5 {[%clk 0:02:20]} 24. Ng5 {[%clk 0:01:50]}  Bxg5 {[%clk 0:02:20]} 25. hxg5 {[%clk 0:01:50]}  Rc8 {[%clk 0:02:19]} 26. c6 {[%clk 0:01:47]}  Qc7 {[%clk 0:02:19]} 27. Qe4 {[%clk 0:01:46]}  a5 {[%clk 0:02:18]} 28. Rc3 {[%clk 0:01:39]}  g6 {[%clk 0:02:17]} 29. Rh3+ {[%clk 0:01:30]}  Kg8 {[%clk 0:02:17]} 30. Qf4 {[%clk 0:01:25]}  Qd8 {[%clk 0:02:02]} 31. Qh4 {[%clk 0:01:23]}  Kf8 {[%clk 0:02:02]} 32. Qh8+ {[%clk 0:01:23]}  Ke7 {[%clk 0:02:03]} 33. Qf6+ {[%clk 0:01:23]} 1-0


[Site "https://www.chess.com"]

[Event "Titled Tuesday Blitz October 11 Late 2022"]
[White "Araujo Sanchez, Josue"]
[Black "Kostiukov, Alexandr"]
[WhiteFideId "6416896"]
[BlackFideId "14108100"]
[WhiteElo "2370"]
[BlackElo "2202"]
[Result "1-0"]
[Round "03"]
[TimeControl "180+1"]
[Date "2022.10.12"]
[WhiteClock "0:02:15"]
[BlackClock "0:01:20"]

1. e4 {[%clk 0:03:00]}  c5 {[%clk 0:02:56]} 2. Nf3 {[%clk 0:03:00]}  g6 {[%clk 0:02:57]} 3. d4 {[%clk 0:02:44]}  cxd4 {[%clk 0:02:58]} 4. Qxd4 {[%clk 0:02:45]}  Nf6 {[%clk 0:02:57]} 5. Qe3 {[%clk 0:02:45]}  Nc6 {[%clk 0:02:55]} 6. c4 {[%clk 0:02:44]}  Bg7 {[%clk 0:02:51]} 7. Nc3 {[%clk 0:02:44]}  O-O {[%clk 0:02:48]} 8. Be2 {[%clk 0:02:42]}  e6 {[%clk 0:02:48]} 9. O-O {[%clk 0:02:42]}  d5 {[%clk 0:02:48]} 10. Rd1 {[%clk 0:02:42]}  Ng4 {[%clk 0:02:18]} 11. Qc5 {[%clk 0:02:23]}  d4 {[%clk 0:02:07]} 12. h3 {[%clk 0:02:22]}  Qc7 {[%clk 0:01:29]} 13. Nb5 {[%clk 0:02:19]}  Qa5 {[%clk 0:01:20]} 14. Bd2 {[%clk 0:02:15]} 1-0


[Site "https://www.chess.com"]

[Event "Titled Tuesday Blitz October 11 Late 2022"]
[White "Atakishiyev, Elmar"]
[Black "Vivas Zamora, Fabian Ernesto"]
[WhiteFideId "13410547"]
[BlackFideId "3902480"]
[WhiteElo "2203"]
[BlackElo "2236"]
[Result "0-1"]
[Round "03"]
[TimeControl "180+1"]
[Date "2022.10.12"]
[WhiteClock "0:00:01"]
[BlackClock "0:00:05"]

1. e4 {[%clk 0:03:00]}  e5 {[%clk 0:02:59]} 2. Nf3 {[%clk 0:02:58]}  Nc6 {[%clk 0:02:59]} 3. Nc3 {[%clk 0:02:57]}  Nf6 {[%clk 0:02:57]} 4. a3 {[%clk 0:02:57]}  d5 {[%clk 0:02:56]} 5. Bb5 {[%clk 0:02:56]}  Nxe4 {[%clk 0:02:48]} 6. Qe2 {[%clk 0:02:53]}  Qd6 {[%clk 0:02:48]} 7. Nxd5 {[%clk 0:02:47]}  Qxd5 {[%clk 0:02:42]} 8. Bc4 {[%clk 0:02:48]}  Qd7 {[%clk 0:02:25]} 9. Qxe4 {[%clk 0:02:45]}  Qg4 {[%clk 0:02:25]} 10. Bd5 {[%clk 0:01:54]}  Qxe4+ {[%clk 0:02:17]} 11. Bxe4 {[%clk 0:01:55]}  Bd6 {[%clk 0:02:12]} 12. O-O {[%clk 0:01:48]}  Bd7 {[%clk 0:01:44]} 13. Re1 {[%clk 0:01:41]}  O-O-O {[%clk 0:01:31]} 14. Bxc6 {[%clk 0:01:28]}  Bxc6 {[%clk 0:01:31]} 15. Nxe5 {[%clk 0:01:28]}  Rhe8 {[%clk 0:01:25]} 16. Nd3 {[%clk 0:01:05]}  Be4 {[%clk 0:01:14]} 17. Kf1 {[%clk 0:00:39]}  Bxh2 {[%clk 0:01:03]} 18. f3 {[%clk 0:00:21]}  Bxd3+ {[%clk 0:00:59]} 19. cxd3 {[%clk 0:00:20]}  Rxe1+ {[%clk 0:00:35]} 20. Kxe1 {[%clk 0:00:20]}  Bg3+ {[%clk 0:00:31]} 21. Kd1 {[%clk 0:00:16]}  Re8 {[%clk 0:00:31]} 22. b4 {[%clk 0:00:15]}  Re1+ {[%clk 0:00:31]} 23. Kc2 {[%clk 0:00:16]}  Be5 {[%clk 0:00:31]} 24. Rb1 {[%clk 0:00:07]}  Kd7 {[%clk 0:00:16]} 25. Rb3 {[%clk 0:00:06]}  Re2 {[%clk 0:00:08]} 26. d4 {[%clk 0:00:06]}  Bg3 {[%clk 0:00:05]} 27. Kd3 {[%clk 0:00:02]}  Rxg2 {[%clk 0:00:05]} 28. Ke4 {[%clk 0:00:03]}  g6 {[%clk 0:00:05]} 29. f4 {[%clk 0:00:03]}  Bh4 {[%clk 0:00:04]} 30. Kf3 {[%clk 0:00:01]}  Rg3+ {[%clk 0:00:04]} 31. Ke2 {[%clk 0:00:01]}  Rxb3 {[%clk 0:00:05]} 0-1


[Site "https://www.chess.com"]

[Event "Titled Tuesday Blitz October 11 Late 2022"]
[White "Aung Thant Zin"]
[Black "Romero Ruscalleda, Josep"]
[WhiteFideId "13000063"]
[BlackFideId "2231859"]
[WhiteElo "2278"]
[BlackElo "2384"]
[Result "1-0"]
[Round "03"]
[TimeControl "180+1"]
[Date "2022.10.12"]
[WhiteClock "0:00:07"]
[BlackClock "0:00:32"]

1. e4 {[%clk 0:02:55]}  g6 {[%clk 0:03:00]} 2. d4 {[%clk 0:02:55]}  Bg7 {[%clk 0:03:01]} 3. Nc3 {[%clk 0:02:55]}  d6 {[%clk 0:03:02]} 4. Nf3 {[%clk 0:02:55]}  a6 {[%clk 0:03:02]} 5. Be2 {[%clk 0:02:55]}  b5 {[%clk 0:03:02]} 6. a3 {[%clk 0:02:54]}  Bb7 {[%clk 0:03:02]} 7. O-O {[%clk 0:02:52]}  Nd7 {[%clk 0:03:02]} 8. Be3 {[%clk 0:02:47]}  Ngf6 {[%clk 0:03:01]} 9. e5 {[%clk 0:02:46]}  Nd5 {[%clk 0:02:58]} 10. e6 {[%clk 0:02:42]}  fxe6 {[%clk 0:02:58]} 11. Ng5 {[%clk 0:02:42]}  Nf8 {[%clk 0:02:58]} 12. Bg4 {[%clk 0:02:38]}  Nxc3 {[%clk 0:02:54]} 13. bxc3 {[%clk 0:02:34]}  Bd5 {[%clk 0:02:54]} 14. Bf3 {[%clk 0:02:01]}  h6 {[%clk 0:02:48]} 15. Ne4 {[%clk 0:01:55]}  Kf7 {[%clk 0:02:41]} 16. Re1 {[%clk 0:01:37]}  Nd7 {[%clk 0:02:41]} 17. Nd2 {[%clk 0:01:34]}  Nf6 {[%clk 0:02:40]} 18. Be2 {[%clk 0:01:24]}  Rf8 {[%clk 0:02:34]} 19. c4 {[%clk 0:01:24]}  bxc4 {[%clk 0:02:34]} 20. Nxc4 {[%clk 0:01:23]}  Kg8 {[%clk 0:02:29]} 21. Nd2 {[%clk 0:01:22]}  Kh7 {[%clk 0:02:26]} 22. Bd3 {[%clk 0:01:21]}  Qd7 {[%clk 0:02:10]} 23. c4 {[%clk 0:01:20]}  Bb7 {[%clk 0:02:09]} 24. Qb1 {[%clk 0:01:18]}  Rab8 {[%clk 0:02:05]} 25. Bxg6+ {[%clk 0:01:17]}  Kh8 {[%clk 0:02:06]} 26. Qc2 {[%clk 0:01:12]}  Ng4 {[%clk 0:02:02]} 27. Be4 {[%clk 0:01:04]}  e5 {[%clk 0:01:33]} 28. d5 {[%clk 0:01:00]}  e6 {[%clk 0:01:28]} 29. Qd1 {[%clk 0:00:54]}  Nxe3 {[%clk 0:01:26]} 30. Rxe3 {[%clk 0:00:53]}  exd5 {[%clk 0:01:26]} 31. cxd5 {[%clk 0:00:52]}  c6 {[%clk 0:01:25]} 32. Nf3 {[%clk 0:00:32]}  cxd5 {[%clk 0:01:22]} 33. Bxd5 {[%clk 0:00:31]}  Bxd5 {[%clk 0:01:21]} 34. Qxd5 {[%clk 0:00:31]}  e4 {[%clk 0:01:21]} 35. Nd4 {[%clk 0:00:31]}  Rb2 {[%clk 0:01:09]} 36. Rf1 {[%clk 0:00:24]}  Qa7 {[%clk 0:00:58]} 37. Rxe4 {[%clk 0:00:20]}  Qc5 {[%clk 0:00:50]} 38. Qxc5 {[%clk 0:00:18]}  dxc5 {[%clk 0:00:50]} 39. Nf3 {[%clk 0:00:15]}  Ra2 {[%clk 0:00:48]} 40. Ra4 {[%clk 0:00:16]}  Bb2 {[%clk 0:00:44]} 41. Rxa6 {[%clk 0:00:14]}  Bxa3 {[%clk 0:00:44]} 42. Rxh6+ {[%clk 0:00:15]}  Kg7 {[%clk 0:00:43]} 43. Rc6 {[%clk 0:00:15]}  Bb4 {[%clk 0:00:42]} 44. h3 {[%clk 0:00:15]}  Rc2 {[%clk 0:00:41]} 45. Rd1 {[%clk 0:00:15]}  Rf7 {[%clk 0:00:39]} 46. Ng5 {[%clk 0:00:14]}  Ra7 {[%clk 0:00:39]} 47. Ne6+ {[%clk 0:00:13]}  Kf7 {[%clk 0:00:39]} 48. Nf4 {[%clk 0:00:12]}  Raa2 {[%clk 0:00:37]} 49. Rd7+ {[%clk 0:00:12]}  Ke8 {[%clk 0:00:37]} 50. Rh7 {[%clk 0:00:08]}  Bc3 {[%clk 0:00:32]} 51. Rc8# {[%clk 0:00:07]} 1-0


[Site "https://www.chess.com"]

[Event "Titled Tuesday Blitz October 11 Late 2022"]
[White "Barash, Anton"]
[Black "Zomorrodian, Eilia"]
[WhiteFideId "30935229"]
[BlackFideId "12551805"]
[WhiteElo "2283"]
[BlackElo "2078"]
[Result "1-0"]
[Round "03"]
[TimeControl "180+1"]
[Date "2022.10.12"]
[WhiteClock "0:00:19"]
[BlackClock "0:00:59"]

1. e4 {[%clk 0:03:00]}  c5 {[%clk 0:03:00]} 2. Nf3 {[%clk 0:03:00]}  e6 {[%clk 0:03:00]} 3. d4 {[%clk 0:03:00]}  cxd4 {[%clk 0:03:01]} 4. Nxd4 {[%clk 0:03:00]}  a6 {[%clk 0:03:01]} 5. c4 {[%clk 0:03:00]}  Nf6 {[%clk 0:03:01]} 6. Nc3 {[%clk 0:02:59]}  Bb4 {[%clk 0:03:02]} 7. Qd3 {[%clk 0:02:22]}  Bxc3+ {[%clk 0:03:02]} 8. bxc3 {[%clk 0:02:20]}  d6 {[%clk 0:03:00]} 9. Be2 {[%clk 0:02:20]}  O-O {[%clk 0:02:59]} 10. O-O {[%clk 0:02:21]}  Qc7 {[%clk 0:02:59]} 11. Bg5 {[%clk 0:02:20]}  Nbd7 {[%clk 0:02:59]} 12. Rfd1 {[%clk 0:02:18]}  b6 {[%clk 0:03:00]} 13. Rab1 {[%clk 0:02:17]}  Bb7 {[%clk 0:03:00]} 14. f3 {[%clk 0:02:11]}  Rac8 {[%clk 0:02:59]} 15. Qe3 {[%clk 0:02:05]}  Ne5 {[%clk 0:02:57]} 16. Bxf6 {[%clk 0:01:58]}  gxf6 {[%clk 0:02:58]} 17. Qh6 {[%clk 0:01:56]}  Qd8 {[%clk 0:02:19]} 18. f4 {[%clk 0:01:56]}  Nxc4 {[%clk 0:02:05]} 19. Rd3 {[%clk 0:01:55]}  Bxe4 {[%clk 0:02:06]} 20. Rg3+ {[%clk 0:01:55]}  Bg6 {[%clk 0:02:06]} 21. f5 {[%clk 0:01:56]}  Qd7 {[%clk 0:01:50]} 22. fxg6 {[%clk 0:01:46]}  fxg6 {[%clk 0:01:51]} 23. Rh3 {[%clk 0:01:25]}  e5 {[%clk 0:01:41]} 24. Nf3 {[%clk 0:01:14]}  d5 {[%clk 0:01:26]} 25. Nh4 {[%clk 0:00:54]}  Qf7 {[%clk 0:01:08]} 26. Nxg6 {[%clk 0:00:37]}  Rfe8 {[%clk 0:01:03]} 27. Rg3 {[%clk 0:00:24]}  Qg7 {[%clk 0:00:59]} 28. Nh4 {[%clk 0:00:22]}  Qxg3 {[%clk 0:00:59]} 29. hxg3 {[%clk 0:00:22]}  Re6 {[%clk 0:01:00]} 30. Bg4 {[%clk 0:00:19]}  f5 {[%clk 0:00:59]} 31. Qxe6+ {[%clk 0:00:19]} 1-0


[Site "https://www.chess.com"]